fUST/lending_fUST_20240104
["ID","MTS","AMOUNT","RATE_DAILY","PERIOD"]
[310130048,1704378652490,-500.0,0.00038904,7]
[310130049,1704378652499,-175.92039455,0.00038904,2]
[310130050,1704378652509,-500.0,0.00038904,7]
[310130051,1704378652519,-500.0,0.00038904,7]
[310130052,1704378652529,-500.0,0.00038904,7]
[310130053,1704378652538,-560.69836054,0.00038904,7]
[310130054,1704378652548,-500.0,0.00038904,7]
[310130055,1704378652558,-500.0,0.00038904,7]
[310130056,1704378652568,-3807.74,0.00038904,7]
[310130057,1704378652578,-319.51347752,0.00038904,7]
[310130058,1704378652588,-500.0,0.00038904,7]
[310130059,1704378652598,-500.0,0.00038904,7]
[310130060,1704378652608,-1215.01,0.00038904,7]
[310130061,1704378652618,-500.0,0.00038904,7]
[310130062,1704378652627,-500.0,0.00038904,7]
[310130063,1704378652637,-500.0,0.00038904,7]
[310130064,1704378652646,-500.0,0.00038904,7]
[310130065,1704378652657,-836.7,0.00038904,7]
[310130066,1704378652667,-7673.44,0.00038904,7]
[310130067,1704378652677,-500.0,0.00038904,7]
[310130068,1704378652686,-500.0,0.00038904,7]
[310130069,1704378652695,-500.0,0.00038904,7]
[310130070,1704378652705,-500.0,0.00038904,7]
[310130071,1704378652715,-1229.89,0.00038904,7]
[310130072,1704378652724,-500.0,0.00038904,7]
[310130073,1704378652733,-500.0,0.00038904,7]
[310130074,1704378652743,-500.0,0.00038904,7]
[310130075,1704378652752,-500.0,0.00038904,7]
[310130076,1704378652761,-500.0,0.00038904,7]
[310130077,1704378652771,-500.0,0.00038904,7]
[310130078,1704378652780,-500.0,0.00038904,7]
[310130079,1704378652789,-500.0,0.00038904,7]
[310130080,1704378652798,-508.06817996,0.00038904,7]
[310130081,1704378652808,-500.0,0.00038904,7]
[310130082,1704378652818,-540.21865481,0.00038904,7]
[310130083,1704378652827,-500.0,0.00038904,2]
[310130084,1704378652882,-2378.79,0.00038904,7]
[310130085,1704378652892,-500.0,0.00038904,7]
[310130086,1704378652902,-500.0,0.00038904,7]
[310130087,1704378652912,-250.38966,0.00038904,2]
[310130088,1704378652923,-250.38966,0.00038904,2]
[310130089,1704378652932,-250.38966,0.00038904,2]
[310130090,1704378652941,-250.38966,0.00038904,2]
[310130091,1704378652950,-229.50322,0.00038904,2]
[310130092,1704378652960,-229.50322,0.00038904,2]
[310130093,1704378652969,-229.50322,0.00038904,2]
[310130094,1704378652979,-229.50322,0.00038904,2]
[310130095,1704378652988,-155.43765086,0.00039,4]
[310130096,1704378652998,-1000.0,0.00039,39]
[310130097,1704378653007,-10016.45633317,0.00039,2]
[310130098,1704378653017,-1014.50906718,0.00039,10]
[310130099,1704378653026,-2032.89861869,0.00039,2]
[310130100,1704378653035,-2107.0,0.00039,30]
[310130101,1704378653045,-500.0,0.00039,7]
[310130102,1704378653055,-221.0,0.00039,2]
[310130103,1704378653065,-150.0,0.0003915,60]
[310130104,1704378653074,-298.0,0.0003915,7]
[310130105,1704378653083,-298.0,0.0003916,7]
[310130106,1704378653093,-180.83,0.0003917,60]
[310130107,1704378653102,-168.0,0.0003917,60]
[310130108,1704378653111,-298.0,0.0003917,7]
[310130109,1704378653121,-644.06871811,0.00039178,7]
[310130110,1704378653131,-500.0,0.00039178,7]
[310130111,1704378653140,-500.0,0.00039178,7]
[310130112,1704378653149,-500.0,0.00039178,7]
[310130113,1704378653158,-500.0,0.00039178,7]
[310130114,1704378653167,-516.93241572,0.00039178,7]
[310130115,1704378653178,-531.22656994,0.00039178,7]
[310130116,1704378653188,-407.33396314,0.00039178,7]
[310130117,1704378653198,-500.0,0.00039178,7]
[310130118,1704378653207,-500.0,0.00039178,7]
[310130119,1704378653216,-500.0,0.00039178,7]
[310130120,1704378653226,-500.0,0.00039178,7]
[310130121,1704378653236,-505.60017931,0.00039178,7]
[310130122,1704378653246,-773.72,0.00039178,7]
[310130123,1704378653255,-500.0,0.00039178,7]
[310130124,1704378653264,-500.0,0.00039178,7]
[310130125,1704378653273,-500.0,0.00039178,7]
[310130126,1704378653282,-500.0,0.00039178,7]
[310130127,1704378653292,-500.0,0.00039178,7]
[310130128,1704378653301,-500.0,0.00039178,7]
[310130129,1704378653311,-500.0,0.00039178,7]
[310130130,1704378653321,-500.0,0.00039178,7]
[310130131,1704378653330,-500.0,0.00039178,7]
[310130132,1704378653340,-500.0,0.00039178,7]
[310130133,1704378653349,-933.65,0.00039178,7]
[310130134,1704378653359,-500.0,0.00039178,7]
[310130135,1704378653368,-500.0,0.00039178,7]
[310130136,1704378653377,-500.0,0.00039178,7]
[310130137,1704378653387,-726.47,0.00039178,7]
[310130138,1704378653396,-921.88,0.00039178,7]
[310130139,1704378653406,-514.66008108,0.00039178,7]
[310130140,1704378653415,-182.10087568,0.00039178,7]
[310130141,1704378653427,-500.0,0.00039178,7]
[310130142,1704378653438,-500.0,0.00039178,7]
[310130143,1704378653448,-500.0,0.00039178,7]
[310130144,1704378653458,-500.0,0.00039178,7]
[310130145,1704378653469,-500.0,0.00039178,7]
[310130146,1704378653479,-500.0,0.00039178,7]
[310130147,1704378653490,-500.0,0.00039178,7]
[310130148,1704378653500,-607.78067208,0.00039178,7]
[310130149,1704378653510,-504.90989519,0.00039178,7]
[310130150,1704378653520,-562.71,0.00039178,7]
[310130151,1704378653530,-500.0,0.00039178,7]
[310130152,1704378653540,-500.0,0.00039178,7]
[310130153,1704378653549,-500.0,0.00039178,7]
[310130154,1704378653560,-550.0,0.00039178,7]
[310130155,1704378653569,-500.0,0.00039178,7]
[310130156,1704378653579,-728.9,0.00039178,7]
[310130157,1704378653588,-500.0,0.00039178,7]
[310130158,1704378653597,-500.0,0.00039178,7]
[310130159,1704378653607,-500.0,0.00039178,7]
[310130160,1704378653617,-530.19501161,0.00039178,7]
[310130161,1704378653626,-500.0,0.00039178,7]
[310130162,1704378653636,-500.0,0.00039178,7]
[310130163,1704378653646,-500.0,0.00039178,7]
[310130164,1704378653655,-500.0,0.00039178,7]
[310130165,1704378653664,-500.0,0.00039178,7]
[310130166,1704378653677,-500.0,0.00039178,7]
[310130167,1704378653731,-500.0,0.00039178,7]
[310130168,1704378653740,-500.0,0.00039178,7]
[310130169,1704378653749,-500.0,0.00039178,7]
[310130170,1704378653758,-500.0,0.00039178,7]
[310130171,1704378653768,-500.0,0.00039178,7]
[310130172,1704378653778,-500.0,0.00039178,7]
[310130173,1704378653788,-274.27195752,0.00039178,7]
[310130174,1704378653797,-500.0,0.00039178,7]
[310130175,1704378653806,-487.81165154,0.00039178,7]
[310130176,1704378653819,-676.9,0.00039178,7]
[310130177,1704378653828,-602.61,0.00039178,7]
[310130178,1704378653838,-197.34080759,0.00039178,7]
[310130179,1704378653848,-500.0,0.00039178,7]
[310130180,1704378653858,-500.0,0.00039178,7]
[310130181,1704378653867,-500.0,0.00039178,7]
[310130182,1704378653877,-500.0,0.00039178,7]
[310130183,1704378653886,-785.56,0.00039178,7]
[310130184,1704378653895,-601.84,0.00039178,7]
[310130185,1704378653905,-500.0,0.00039178,7]
[310130186,1704378653914,-409.68093324,0.00039178,7]
[310130187,1704378653924,-500.0,0.00039178,7]
[310130188,1704378653934,-500.0,0.00039178,7]
[310130189,1704378653943,-500.0,0.00039178,7]
[310130190,1704378653953,-500.0,0.00039178,7]
[310130191,1704378653962,-377.15772953,0.00039178,7]
[310130192,1704378653972,-765.9,0.00039178,7]
[310130193,1704378653981,-500.0,0.00039178,7]
[310130194,1704378653991,-500.0,0.00039178,7]
[310130195,1704378654000,-324.47795892,0.00039178,7]
[310130196,1704378654008,-500.0,0.00039178,7]
[310130197,1704378654018,-500.0,0.00039178,7]
[310130198,1704378654027,-500.0,0.00039178,7]
[310130199,1704378654036,-500.0,0.00039178,7]
[310130200,1704378654045,-500.0,0.00039178,7]
[310130201,1704378654054,-500.0,0.00039178,7]
[310130202,1704378654063,-629.26352752,0.00039178,7]
[310130203,1704378654073,-500.0,0.00039178,7]
[310130204,1704378654082,-500.0,0.00039178,7]
[310130205,1704378654091,-998.67,0.00039178,7]
[310130206,1704378654112,-2214.33,0.00039178,7]
[310130207,1704378654127,-504.28,0.00039178,7]
[310130208,1704378654145,-500.0,0.00039178,7]
[310130209,1704378654162,-500.0,0.00039178,7]
[310130210,1704378654178,-500.0,0.00039178,7]
[310130211,1704378654195,-463.09863253,0.00039178,7]
[310130212,1704378654210,-513.76685189,0.00039178,7]
[310130213,1704378654227,-563.33939709,0.00039178,7]
[310130214,1704378654243,-938.14,0.00039178,7]
[310130215,1704378654261,-211.99583497,0.00039178,7]
[310130216,1704378654281,-500.0,0.00039178,7]
[310130217,1704378654296,-500.0,0.00039178,7]
[310130218,1704378654311,-500.0,0.00039178,7]
[310130219,1704378654326,-500.0,0.00039178,7]
[310130220,1704378654340,-500.0,0.00039178,7]
[310130221,1704378654353,-590.87,0.00039178,7]
[310130222,1704378654366,-500.0,0.00039178,7]
[310130223,1704378654380,-500.0,0.00039178,7]
[310130224,1704378654394,-500.0,0.00039178,7]
[310130225,1704378654409,-500.0,0.00039178,7]
[310130226,1704378654423,-500.0,0.00039178,7]
[310130227,1704378654437,-500.0,0.00039178,7]
[310130228,1704378654450,-500.0,0.00039178,7]
[310130229,1704378654463,-504.39400687,0.00039178,7]
[310130230,1704378654476,-500.0,0.00039178,7]
[310130231,1704378654490,-500.0,0.00039178,7]
[310130232,1704378654503,-500.0,0.00039178,7]
[310130233,1704378654518,-500.0,0.00039178,7]
[310130234,1704378654531,-500.0,0.00039178,7]
[310130235,1704378654544,-193.75753222,0.00039178,5]
[310130236,1704378654558,-500.0,0.00039178,7]
[310130237,1704378654572,-500.0,0.00039178,7]
[310130238,1704378654586,-500.0,0.00039178,7]
[310130239,1704378654601,-500.0,0.00039178,7]
[310130240,1704378654615,-936.46,0.00039178,7]
[310130241,1704378654628,-2773.84,0.00039178,7]
[310130242,1704378654643,-500.0,0.00039178,7]
[310130243,1704378654721,-500.0,0.00039178,7]
[310130244,1704378654732,-500.0,0.00039178,7]
[310130245,1704378654742,-500.0,0.00039178,7]
[310130246,1704378654751,-328.73017845,0.00039178,7]
[310130247,1704378654761,-553.27752338,0.00039178,7]
[310130248,1704378654770,-548.88,0.00039178,7]
[310130249,1704378654779,-500.0,0.00039178,7]
[310130250,1704378654789,-3363.18,0.00039178,7]
[310130251,1704378654798,-501.93397439,0.00039178,7]
[310130252,1704378654808,-500.0,0.00039178,7]
[310130253,1704378654817,-500.0,0.00039178,7]
[310130254,1704378654826,-504.88822825,0.00039178,7]
[310130255,1704378654836,-500.0,0.00039178,7]
[310130256,1704378654845,-1029.28,0.00039178,7]
[310130257,1704378654855,-500.0,0.00039178,7]
[310130258,1704378654864,-500.0,0.00039178,7]
[310130259,1704378654874,-500.0,0.00039178,7]
[310130260,1704378654883,-500.0,0.00039178,7]
[310130261,1704378654893,-930.59,0.00039178,7]
[310130262,1704378654902,-7189.88,0.00039178,7]
[310130263,1704378654911,-807.95,0.00039178,7]
[310130264,1704378654920,-500.0,0.00039178,7]
[310130265,1704378654931,-2622.15,0.00039178,7]
[310130266,1704378654943,-5000.0,0.00039178,10]
[310130267,1704378654952,-1640.87,0.00039178,7]
[310130268,1704378654961,-3714.82,0.00039178,7]
[310130269,1704378654970,-500.0,0.00039178,7]
[310130270,1704378654980,-575.08,0.00039178,2]
[310130271,1704378654990,-500.0,0.00039178,7]
[310130272,1704378655003,-3757.04,0.00039178,7]
[310130273,1704378655019,-500.0,0.00039178,7]
[310130274,1704378655037,-500.0,0.00039178,7]
[310130275,1704378655046,-500.0,0.00039178,7]
[310130276,1704378655056,-500.0,0.00039178,7]
[310130277,1704378655065,-500.0,0.00039178,7]
[310130278,1704378655075,-1389.21,0.00039178,7]
[310130279,1704378655085,-500.0,0.00039178,7]
[310130280,1704378655094,-928.48,0.00039178,7]
[310130281,1704378655103,-500.0,0.00039178,7]
[310130282,1704378655113,-500.0,0.00039178,7]
[310130283,1704378655123,-500.0,0.00039178,7]
[310130284,1704378655133,-500.0,0.00039178,7]
[310130285,1704378655144,-945.75,0.00039178,7]
[310130286,1704378655153,-500.0,0.00039178,7]
[310130287,1704378655163,-500.0,0.00039178,7]
[310130288,1704378655174,-867.88,0.00039178,7]
[310130289,1704378655184,-500.0,0.00039178,7]
[310130290,1704378655194,-3889.06,0.00039178,7]
[310130291,1704378655204,-12109.38,0.00039178,7]
[310130292,1704378655214,-777.49,0.00039178,7]
[310130293,1704378655223,-260.47772452,0.00039178,7]
[310130294,1704378655234,-500.0,0.00039178,7]
[310130295,1704378655243,-1635.96,0.00039178,7]
[310130296,1704378655253,-500.0,0.00039178,7]
[310130297,1704378655263,-500.0,0.00039178,7]
[310130298,1704378655273,-500.0,0.00039178,7]
[310130299,1704378655283,-500.0,0.00039178,7]
[310130300,1704378655293,-28505.95,0.00039178,7]
[310130301,1704378655302,-500.0,0.00039178,7]
[310130302,1704378655313,-46385.68,0.00039178,3]
[310130303,1704378655323,-500.0,0.00039178,7]
[310130304,1704378655332,-500.0,0.00039178,7]
[310130305,1704378655341,-500.0,0.00039178,7]
[310130306,1704378655351,-572.89415286,0.00039178,7]
[310130307,1704378655360,-500.0,0.00039178,7]
[310130308,1704378655369,-500.0,0.00039178,7]
[310130309,1704378655379,-500.0,0.00039178,7]
[310130310,1704378655388,-500.0,0.00039178,7]
[310130311,1704378655397,-604.55351256,0.00039178,7]
[310130312,1704378655406,-500.0,0.00039178,7]
[310130313,1704378655416,-3807.74,0.00039178,7]
[310130314,1704378655427,-500.0,0.00039178,7]
[310130315,1704378655436,-500.0,0.00039178,7]
[310130316,1704378655445,-1215.01,0.00039178,7]
[310130317,1704378655454,-533.64488153,0.00039178,7]
[310130318,1704378655463,-500.0,0.00039178,7]
[310130319,1704378655473,-512.05962348,0.00039178,7]
[310130320,1704378655482,-500.0,0.00039178,7]
[310130321,1704378655491,-836.7,0.00039178,7]
[310130322,1704378655500,-7673.44,0.00039178,7]
[310130323,1704378655510,-500.0,0.00039178,7]
[310130324,1704378655519,-500.0,0.00039178,7]
[310130325,1704378655572,-500.0,0.00039178,7]
[310130326,1704378655582,-508.04178387,0.00039178,7]
[310130327,1704378655591,-1229.89,0.00039178,7]
[310130328,1704378655601,-511.93800855,0.00039178,7]
[310130329,1704378655610,-500.0,0.00039178,7]
[310130330,1704378655619,-223.26616222,0.00039178,7]
[310130331,1704378655629,-500.10326256,0.00039178,7]
[310130332,1704378655638,-500.0,0.00039178,7]
[310130333,1704378655647,-500.0,0.00039178,7]
[310130334,1704378655656,-500.0,0.00039178,7]
[310130335,1704378655666,-500.0,0.00039178,7]
[310130336,1704378655677,-500.0,0.00039178,7]
[310130337,1704378655686,-500.0,0.00039178,2]
[310130338,1704378655695,-2378.79,0.00039178,7]
[310130339,1704378655705,-500.0,0.00039178,7]
[310130340,1704378655715,-500.0,0.00039178,7]
[310130341,1704378655725,-250.38966,0.00039178,2]
[310130342,1704378655738,-250.38966,0.00039178,2]
[310130343,1704378655747,-250.38966,0.00039178,2]
[310130344,1704378655757,-250.389658,0.00039178,2]
[310130345,1704378655766,-229.50322,0.00039178,2]
[310130346,1704378655775,-229.50322004,0.00039178,2]
[310130347,1704378655785,-308.9906704,0.00039178,2]
[310130348,1704378655794,-168.0,0.0003918,60]
[310130349,1704378655804,-168.0,0.0003919,60]
[310130350,1704378655815,-151.0,0.00039271,2]
[310130351,1704378655824,-1357.0,0.00039378,13]
[310130352,1704378655834,-500.0,0.00039452,7]
[310130353,1704378655843,-500.0,0.00039452,7]
[310130354,1704378655852,-500.0,0.00039452,7]
[310130355,1704378655862,-500.0,0.00039452,7]
[310130356,1704378655871,-228.34356058,0.00039452,7]
[310130357,1704378655881,-500.0,0.00039452,7]
[310130358,1704378655890,-514.16399318,0.00039452,7]
[310130359,1704378655899,-500.0,0.00039452,7]
[310130360,1704378655909,-773.72,0.00039452,7]
[310130361,1704378655918,-500.0,0.00039452,7]
[310130362,1704378655929,-500.0,0.00039452,7]
[310130363,1704378655938,-500.0,0.00039452,7]
[310130364,1704378655947,-399.84214994,0.00039452,7]
[310130365,1704378655956,-500.0,0.00039452,7]
[310130366,1704378655964,-500.0,0.00039452,7]
[310130367,1704378655974,-500.0,0.00039452,7]
[310130368,1704378655983,-550.79041391,0.00039452,7]
[310130369,1704378655992,-500.0,0.00039452,7]
[310130370,1704378656000,-500.0,0.00039452,7]
[310130371,1704378656009,-933.65,0.00039452,7]
[310130372,1704378656018,-500.0,0.00039452,7]
[310130373,1704378656027,-504.6134271,0.00039452,7]
[310130374,1704378656037,-460.58336195,0.00039452,7]
[310130375,1704378656046,-726.47,0.00039452,7]
[310130376,1704378656055,-921.88,0.00039452,7]
[310130377,1704378656064,-500.0,0.00039452,7]
[310130378,1704378656072,-500.0,0.00039452,7]
[310130379,1704378656081,-500.0,0.00039452,7]
[310130380,1704378656090,-506.48010432,0.00039452,7]
[310130381,1704378656099,-500.0,0.00039452,7]
[310130382,1704378656107,-500.0,0.00039452,7]
[310130383,1704378656116,-500.0,0.00039452,7]
[310130384,1704378656125,-562.71,0.00039452,7]
[310130385,1704378656133,-500.0,0.00039452,7]
[310130386,1704378656142,-500.0,0.00039452,7]
[310130387,1704378656151,-500.0,0.00039452,7]
[310130388,1704378656160,-500.0,0.00039452,7]
[310130389,1704378656169,-728.9,0.00039452,7]
[310130390,1704378656180,-500.0,0.00039452,7]
[310130391,1704378656188,-500.0,0.00039452,7]
[310130392,1704378656198,-500.0,0.00039452,7]
[310130393,1704378656207,-500.0,0.00039452,7]
[310130394,1704378656217,-500.0,0.00039452,7]
[310130395,1704378656226,-500.0,0.00039452,7]
[310130396,1704378656235,-500.0,0.00039452,7]
[310130397,1704378656244,-500.0,0.00039452,7]
[310130398,1704378656253,-500.0,0.00039452,7]
[310130399,1704378656263,-194.65028175,0.00039452,7]
[310130400,1704378656272,-500.0,0.00039452,7]
[310130401,1704378656281,-500.0,0.00039452,7]
[310130402,1704378656290,-500.0,0.00039452,7]
[310130403,1704378656300,-500.0,0.00039452,7]
[310130404,1704378656311,-500.0,0.00039452,7]
[310130405,1704378656320,-500.0,0.00039452,7]
[310130406,1704378656329,-676.9,0.00039452,7]
[310130407,1704378656339,-602.61,0.00039452,7]
[310130408,1704378656349,-212.49443009,0.00039452,7]
[310130409,1704378656358,-500.0,0.00039452,7]
[310130410,1704378656368,-500.0,0.00039452,7]
[310130411,1704378656377,-500.0,0.00039452,7]
[310130412,1704378656387,-785.56,0.00039452,7]
[310130413,1704378656396,-601.84,0.00039452,7]
[310130414,1704378656406,-500.0,0.00039452,7]
[310130415,1704378656415,-500.0,0.00039452,7]
[310130416,1704378656425,-500.0,0.00039452,7]
[310130417,1704378656435,-500.0,0.00039452,7]
[310130418,1704378656444,-500.0,0.00039452,7]
[310130419,1704378656453,-765.9,0.00039452,7]
[310130420,1704378656463,-500.0,0.00039452,7]
[310130421,1704378656472,-500.0,0.00039452,7]
[310130422,1704378656482,-155.82739453,0.00039452,7]
[310130423,1704378656491,-500.0,0.00039452,7]
[310130424,1704378656501,-500.0,0.00039452,7]
[310130425,1704378656510,-500.0,0.00039452,7]
[310130426,1704378656519,-500.0,0.00039452,7]
[310130427,1704378656528,-500.0,0.00039452,7]
[310130428,1704378656537,-500.0,0.00039452,7]
[310130429,1704378656547,-500.0,0.00039452,7]
[310130430,1704378656556,-998.67,0.00039452,7]
[310130431,1704378656565,-2214.33,0.00039452,7]
[310130432,1704378656575,-504.28,0.00039452,7]
[310130433,1704378656584,-500.0,0.00039452,7]
[310130434,1704378656594,-500.0,0.00039452,7]
[310130435,1704378656603,-500.0,0.00039452,7]
[310130436,1704378656613,-938.14,0.00039452,7]
[310130437,1704378656622,-500.0,0.00039452,7]
[310130438,1704378656633,-500.0,0.00039452,7]
[310130439,1704378656642,-199.91283579,0.00039452,7]
[310130440,1704378656651,-500.0,0.00039452,7]
[310130441,1704378656660,-500.0,0.00039452,7]
[310130442,1704378656670,-590.87,0.00039452,7]
[310130443,1704378656680,-500.0,0.00039452,7]
[310130444,1704378656690,-500.0,0.00039452,7]
[310130445,1704378656700,-500.0,0.00039452,7]
[310130446,1704378656710,-500.0,0.00039452,7]
[310130447,1704378656720,-500.0,0.00039452,7]
[310130448,1704378656730,-500.0,0.00039452,7]
[310130449,1704378656740,-500.0,0.00039452,7]
[310130450,1704378656749,-500.0,0.00039452,7]
[310130451,1704378656759,-500.0,0.00039452,7]
[310130452,1704378656768,-500.0,0.00039452,7]
[310130453,1704378656778,-500.0,0.00039452,7]
[310130454,1704378656787,-500.0,0.00039452,7]
[310130455,1704378656797,-500.0,0.00039452,7]
[310130456,1704378656806,-500.0,0.00039452,7]
[310130457,1704378656816,-500.0,0.00039452,7]
[310130458,1704378656825,-500.0,0.00039452,7]
[310130459,1704378656835,-936.46,0.00039452,7]
[310130460,1704378656844,-2773.84,0.00039452,7]
[310130461,1704378656855,-516.28843698,0.00039452,7]
[310130462,1704378656865,-500.0,0.00039452,7]
[310130463,1704378656874,-297.55460532,0.00039452,7]
[310130464,1704378656884,-500.0,0.00039452,7]
[310130465,1704378656893,-548.88,0.00039452,7]
[310130466,1704378656903,-500.0,0.00039452,7]
[310130467,1704378656912,-3363.18,0.00039452,7]
[310130468,1704378656923,-511.12703444,0.00039452,7]
[310130469,1704378656932,-500.0,0.00039452,7]
[310130470,1704378656942,-500.0,0.00039452,7]
[310130471,1704378656951,-1029.28,0.00039452,7]
[310130472,1704378656961,-500.0,0.00039452,7]
[310130473,1704378656970,-536.05891728,0.00039452,7]
[310130474,1704378656980,-500.0,0.00039452,7]
[310130475,1704378656990,-500.0,0.00039452,7]
[310130476,1704378656999,-930.59,0.00039452,7]
[310130477,1704378657008,-160.74584345,0.00039452,7]
[310130478,1704378657130,-7029.13415655,0.00039452,7]
[310130479,1704378657143,-807.95,0.00039452,7]
[310130480,1704378657152,-364.00183387,0.00039452,7]
[310130481,1704378657161,-2622.15,0.00039452,7]
[310130482,1704378657173,-5000.0,0.00039452,10]
[310130483,1704378657182,-1640.87,0.00039452,7]
[310130484,1704378657192,-3714.82,0.00039452,7]
[310130485,1704378657201,-163.22650141,0.00039452,7]
[310130486,1704378657211,-575.08,0.00039452,2]
[310130487,1704378657220,-500.0,0.00039452,7]
[310130488,1704378657229,-3757.04,0.00039452,7]
[310130489,1704378657239,-500.0,0.00039452,7]
[310130490,1704378657248,-500.0,0.00039452,7]
[310130491,1704378657257,-500.0,0.00039452,7]
[310130492,1704378657267,-500.0,0.00039452,7]
[310130493,1704378657276,-500.0,0.00039452,7]
[310130494,1704378657286,-1389.21,0.00039452,7]
[310130495,1704378657295,-500.0,0.00039452,7]
[310130496,1704378657306,-928.48,0.00039452,7]
[310130497,1704378657316,-500.0,0.00039452,7]
[310130498,1704378657326,-500.0,0.00039452,7]
[310130499,1704378657335,-500.0,0.00039452,7]
[310130500,1704378657344,-500.0,0.00039452,7]
[310130501,1704378657354,-945.75,0.00039452,7]
[310130502,1704378657364,-500.0,0.00039452,7]
[310130503,1704378657374,-500.0,0.00039452,7]
[310130504,1704378657384,-867.88,0.00039452,7]
[310130505,1704378657394,-500.0,0.00039452,7]
[310130506,1704378657405,-3889.06,0.00039452,7]
[310130507,1704378657416,-12109.38,0.00039452,7]
[310130508,1704378657427,-777.49,0.00039452,7]
[310130509,1704378657436,-500.0,0.00039452,7]
[310130510,1704378657446,-1635.96,0.00039452,7]
[310130511,1704378657455,-500.0,0.00039452,7]
[310130512,1704378657464,-179.32268542,0.00039452,7]
[310130513,1704378657474,-500.0,0.00039452,7]
[310130514,1704378657484,-500.0,0.00039452,7]
[310130515,1704378657494,-28505.95,0.00039452,7]
[310130516,1704378657503,-500.0,0.00039452,7]
[310130517,1704378657513,-21261.81103528,0.00039452,3]
[310130518,1704378658148,-173.0,0.00027021,2]
[310130519,1704378658158,-173.0,0.00030021,2]
[310130520,1704378658167,-439.5217121,0.00030135,4]
[310130521,1704378658177,-186.85673032,0.00030136,2]
[310130522,1704378658186,-500.0,0.00030136,2]
[310130523,1704378658195,-412.11403819,0.00032876,7]
[310130524,1704378658205,-173.0,0.00033021,2]
[310130525,1704378658215,-163.394,0.00036021,2]
[310130526,1704378658224,-6456.54111939,0.00039452,3]
[310130527,1704378658341,-630.0,0.000295,30]
[310130565,1704379832583,-154.84515485,0.00027076,4]
[310130566,1704379832594,-344.36468707,0.00027077,2]
[310130567,1704379832603,-154.84515485,0.00027078,2]
[310130568,1704379832613,-174.462204,0.00027806,2]
[310130569,1704379832623,-1321.08258665,0.000279,2]
[310130570,1704379832632,-15.84150458,0.00028,2]
[310130612,1704379840799,-984.15849542,0.00028,2]
[310130614,1704379840809,-160.0,0.00028989,2]
[310130616,1704379840818,-150.284,0.00028989,2]
[310130619,1704379840828,-150.0,0.00028989,2]
[310130620,1704379840838,-300.0,0.00029,14]
[310130622,1704379840848,-1000.0,0.00029,2]
[310130624,1704379840858,-150.0,0.00029,2]
[310130626,1704379840867,-3102.86235415,0.00029,2]
[310130629,1704379840877,-20649.59637463,0.000295,30]
[310130631,1704379840887,-762.54664786,0.000295,2]
[310130633,1704379840897,-2076.65490248,0.000295,2]
[310130635,1704379840907,-154.84515485,0.000295,2]
[310130637,1704379840918,-3125.50457669,0.000295,2]
[310130638,1704379840928,-154.84515485,0.000295,4]